[Event "Gibraltar Masters 18th"]
[Site "Gibraltar"]
[Date "2020.01.30"]
[Round "10.9"]
[White "Praggnanandhaa, Rameshbabu"]
[Black "Saric, Ivan"]
[Result "1/2-1/2"]
[ECO "D02"]
[WhiteElo "2602"]
[BlackElo "2655"]
[PlyCount "226"]
[EventDate "2020.01.21"]
[EventType "swiss"]
[EventRounds "10"]
[EventCountry "GGB"]
[SourceTitle "BritBase"]
[Source "John Saunders"]
[SourceDate "2021.06.05"]
[SourceVersion "1"]
[SourceVersionDate "2021.06.05"]
[SourceQuality "1"]
[TimeControl "40/100:0"]
[WhiteClock "0:04:48"]
[BlackClock "0:06:11"]

1. Nf3 {[%emt 0:00:00]} d5 {[%emt 0:00:00]} 2. g3 {[%emt 0:00:00]} Nc6 {
[%emt 0:00:00]} 3. d4 {[%emt 0:00:00]} Bf5 {[%emt 0:00:00]} 4. Bg2 {[%emt 0:00:
00]} Nb4 {[%emt 0:00:00]} 5. Na3 {[%emt 0:00:00]} e6 {[%emt 0:00:00]} 6. c3 {
[%emt 0:00:00]} Nc6 {[%emt 0:00:00]} 7. Qb3 {[%emt 0:00:00]} Rb8 {[%emt 0:00:
00]} 8. Nh4 {[%emt 0:00:00]} Bg4 {[%emt 0:00:00]} 9. e4 {[%emt 0:00:00]} dxe4 {
[%emt 0:00:00]} 10. Bxe4 {[%emt 0:00:00]} Be7 {[%emt 0:00:00]} 11. Nc4 {
[%emt 0:00:00]} Nf6 {[%emt 0:00:00]} 12. Bg2 {[%emt 0:00:00]} O-O {[%emt 0:00:
00]} 13. O-O {[%emt 0:00:00]} Nd5 {[%emt 0:00:00]} 14. Nf3 {[%emt 0:00:00]}
Bxf3 {[%emt 0:00:00]} 15. Bxf3 {[%emt 0:00:00]} Bg5 {[%emt 0:00:00]} 16. Re1 {
[%emt 0:00:00]} Bxc1 {[%emt 0:00:00]} 17. Raxc1 {[%emt 0:00:00]} b5 {[%emt 0:
00:00]} 18. Nd2 {[%emt 0:00:00]} a5 {[%emt 0:00:00]} 19. Ne4 {[%emt 0:00:00]}
Nce7 {[%emt 0:00:00]} 20. Nc5 {[%emt 0:00:00]} c6 {[%emt 0:00:00]} 21. Re2 {
[%emt 0:00:00]} Nf5 {[%emt 0:00:00]} 22. Rce1 {[%emt 0:00:00]} Nd6 {[%emt 0:00:
00]} 23. Qc2 {[%emt 0:00:00]} Nb7 {[%emt 0:00:00]} 24. Nd3 {[%emt 0:00:00]} Qc7
{[%emt 0:00:00]} 25. a4 {[%emt 0:00:00]} Ne7 {[%emt 0:00:00]} 26. axb5 {
[%emt 0:07:11]} cxb5 {[%emt 0:00:00]} 27. Qb3 {[%emt 0:00:00]} Nd8 {[%emt 0:00:
00]} 28. Nc5 {[%emt 0:00:00]} Rb6 {[%emt 0:00:00]} 29. Qa2 {[%emt 0:00:00]} a4
{[%emt 0:00:00]} 30. Bg4 {[%emt 0:00:00]} g6 {[%emt 0:00:00]} 31. h4 {[%emt 0:
00:00]} h5 {[%emt 0:00:00]} 32. Bh3 {[%emt 0:00:00]} Kg7 {[%emt 0:00:00]} 33.
Re5 {[%emt 0:00:00]} Nd5 {[%emt 0:00:00]} 34. Qb1 {[%emt 0:00:00]} Nf6 {
[%emt 0:00:00]} 35. Rg5 {[%emt 0:00:00]} Re8 {[%emt 0:00:00]} 36. Qd3 {[%emt 0:
00:21]} Nh7 {[%emt 0:00:00]} 37. Rge5 {[%emt 0:00:00]} Nf6 {[%emt 0:00:00]} 38.
Qf3 {[%emt 0:00:00]} Nb7 {[%emt 0:00:19]} 39. Nd3 {[%emt 0:00:00]} a3 {[%emt 0:
00:00]} 40. bxa3 {[%emt 0:00:00]} Qxc3 {[%emt 0:00:00]} 41. Rc1 {[%emt 0:00:00]
} Qxa3 {[%emt 0:00:00]} 42. Rc7 {[%emt 0:00:00]} Nd8 {[%emt 0:00:00]} 43. Rec5
{[%emt 0:00:00]} b4 {[%emt 0:00:00]} 44. Kg2 {[%emt 0:00:00]} Rb8 {[%emt 0:00:
00]} 45. Rc8 {[%emt 0:00:00]} Rxc8 {[%emt 0:00:00]} 46. Rxc8 {[%emt 0:00:00]}
Nd5 {[%emt 0:00:00]} 47. Nc5 {[%emt 0:00:00]} Qxf3+ {[%emt 0:00:00]} 48. Kxf3 {
[%emt 0:00:00]} Rh8 {[%emt 0:00:00]} 49. Bg2 {[%emt 0:00:00]} Nb7 {[%emt 0:00:
00]} 50. Rxh8 {[%emt 0:00:00]} Kxh8 {[%emt 0:00:00]} 51. Ke2 {[%emt 0:00:00]}
Nd6 {[%emt 0:00:00]} 52. Bxd5 {[%emt 0:00:00]} exd5 {[%emt 0:00:00]} 53. Kd3 {
[%emt 0:00:00]} Kg7 {[%emt 0:00:00]} 54. Na6 {[%emt 0:00:00]} b3 {[%emt 0:00:
00]} 55. Nc5 {[%emt 0:00:00]} b2 {[%emt 0:00:00]} 56. Kc2 {[%emt 0:00:00]} Nb5
{[%emt 0:00:00]} 57. Kxb2 {[%emt 0:00:00]} Nxd4 {[%emt 0:00:00]} 58. Nd7 {
[%emt 0:00:00]} Nf5 {[%emt 0:00:00]} 59. Kc3 {[%emt 0:00:00]} Nd6 {[%emt 0:00:
00]} 60. Kd4 {[%emt 0:00:00]} Ne4 {[%emt 0:00:00]} 61. Kxd5 {[%emt 0:00:00]}
Nxf2 {[%emt 0:00:00]} 62. Ke5 {[%emt 0:00:00]} Ng4+ {[%emt 0:00:00]} 63. Kd4 {
[%emt 0:00:00]} Nf6 {[%emt 0:00:00]} 64. Nc5 {[%emt 0:00:00]} Kf8 {[%emt 0:00:
00]} 65. Ke5 {[%emt 0:00:00]} Ke7 {[%emt 0:00:00]} 66. Nd3 {[%emt 0:00:00]}
Nd7+ {[%emt 0:00:00]} 67. Kd5 {[%emt 0:00:00]} Kf6 {[%emt 0:00:00]} 68. Ke4 {
[%emt 0:00:00]} Ke6 {[%emt 0:00:00]} 69. Nf4+ {[%emt 0:00:00]} Kd6 {[%emt 0:00:
00]} 70. Nd3 {[%emt 0:00:00]} Nf8 {[%emt 0:00:00]} 71. Nb2 {[%emt 0:00:00]} Ke7
{[%emt 0:00:00]} 72. Nd3 {[%emt 0:00:00]} Ne6 {[%emt 0:00:00]} 73. Ne5 {
[%emt 0:00:00]} Ng7 {[%emt 0:00:00]} 74. Nc6+ {[%emt 0:00:00]} Ke6 {[%emt 0:00:
00]} 75. Nd4+ {[%emt 0:00:00]} Kf6 {[%emt 0:00:00]} 76. Nc6 {[%emt 0:00:00]}
Ne6 {[%emt 0:00:00]} 77. Nb4 {[%emt 0:00:00]} Nc5+ {[%emt 0:00:00]} 78. Kf4 {
[%emt 0:00:00]} Ke6 {[%emt 0:00:00]} 79. Nc6 {[%emt 0:00:00]} Kd5 {[%emt 0:00:
00]} 80. Nb4+ {[%emt 0:00:00]} Kd6 {[%emt 0:00:00]} 81. Nc2 {[%emt 0:00:00]}
Ne6+ {[%emt 0:00:00]} 82. Ke4 {[%emt 0:00:00]} Nc5+ {[%emt 0:00:00]} 83. Kf4 {
[%emt 0:00:00]} Nd7 {[%emt 0:00:00]} 84. Nb4 {[%emt 0:00:00]} Kc5 {[%emt 0:00:
00]} 85. Nc2 {[%emt 0:00:00]} Nf6 {[%emt 0:00:00]} 86. Ke5 {[%emt 0:00:00]}
Ng4+ {[%emt 0:00:00]} 87. Ke4 {[%emt 0:00:00]} Kc4 {[%emt 0:00:00]} 88. Na3+ {
[%emt 0:00:00]} Kb4 {[%emt 0:00:00]} 89. Nb1 {[%emt 0:00:00]} Nf6+ {[%emt 0:00:
00]} 90. Kd4 {[%emt 0:00:00]} Kb5 {[%emt 0:00:00]} 91. Nd2 {[%emt 0:00:00]} Kc6
{[%emt 0:00:00]} 92. Nf3 {[%emt 0:00:00]} Kd6 {[%emt 0:00:00]} 93. Ng5 {
[%emt 0:00:00]} Ke7 {[%emt 0:00:00]} 94. Ke5 {[%emt 0:00:00]} Nd7+ {[%emt 0:00:
00]} 95. Ke4 {[%emt 0:00:00]} Nc5+ {[%emt 0:00:00]} 96. Kd5 {[%emt 0:00:00]}
Ne6 {[%emt 0:00:00]} 97. Ne4 {[%emt 0:00:00]} f5 {[%emt 0:00:00]} 98. Nc3 {
[%emt 0:00:00]} Kf6 {[%emt 0:00:00]} 99. Ne2 {[%emt 0:00:00]} f4 {[%emt 0:00:
00]} 100. Ke4 {[%emt 0:00:00]} fxg3 {[%emt 0:00:00]} 101. Nxg3 {[%emt 0:00:00]}
Ng7 {[%emt 0:00:00]} 102. Kf4 {[%emt 0:00:00]} Ne6+ {[%emt 0:00:00]} 103. Ke4 {
[%emt 0:00:00]} Nc5+ {[%emt 0:00:00]} 104. Kd4 {[%emt 0:00:00]} Na4 {[%emt 0:
00:00]} 105. Ke4 {[%emt 0:00:00]} Nc3+ {[%emt 0:00:00]} 106. Kd4 {[%emt 0:00:
00]} Nb5+ {[%emt 0:00:00]} 107. Ke4 {[%emt 0:00:00]} Nd6+ {[%emt 0:00:00]} 108.
Kf4 {[%emt 0:00:00]} Nf5 {[%emt 0:00:00]} 109. Ne4+ {[%emt 0:00:00]} Kg7 {
[%emt 0:00:00]} 110. Kg5 {[%emt 0:00:00]} Nd4 {[%emt 0:00:00]} 111. Kf4 {
[%emt 0:00:00]} Kh6 {[%emt 0:00:00]} 112. Nd6 {[%emt 0:00:00]} Ne6+ {[%emt 0:
00:00]} 113. Ke5 {[%emt 0:00:00]} Nc5 {[%emt 0:00:00]} 1/2-1/2

[Event "Gibraltar Masters 18th"]
[Site "Gibraltar"]
[Date "2020.01.30"]
[Round "10.11"]
[White "Cheparinov, Ivan"]
[Black "Aryan, Chopra"]
[Result "1/2-1/2"]
[ECO "A34"]
[WhiteElo "2686"]
[BlackElo "2562"]
[PlyCount "60"]
[EventDate "2020.01.21"]
[EventType "swiss"]
[EventRounds "10"]
[EventCountry "GGB"]
[SourceTitle "BritBase"]
[Source "John Saunders"]
[SourceDate "2021.06.05"]
[SourceVersion "1"]
[SourceVersionDate "2021.06.05"]
[SourceQuality "1"]
[TimeControl "40/100:0"]
[WhiteClock "1:01:02"]
[BlackClock "0:41:27"]

1. Nf3 {[%emt 0:00:00]} Nf6 {[%emt 0:00:00]} 2. c4 {[%emt 0:00:00]} c5 {
[%emt 0:00:00]} 3. Nc3 {[%emt 0:00:00]} Nc6 {[%emt 0:00:00]} 4. g3 {[%emt 0:00:
00]} d5 {[%emt 0:00:00]} 5. d4 {[%emt 0:00:00]} cxd4 {[%emt 0:00:00]} 6. Nxd4 {
[%emt 0:00:00]} dxc4 {[%emt 0:00:00]} 7. Nxc6 {[%emt 0:00:00]} Qxd1+ {[%emt 0:
00:00]} 8. Nxd1 {[%emt 0:00:00]} bxc6 {[%emt 0:00:00]} 9. Bg2 {[%emt 0:00:00]}
Nd5 {[%emt 0:00:00]} 10. Ne3 {[%emt 0:00:00]} e6 {[%emt 0:00:00]} 11. Nxc4 {
[%emt 0:00:00]} Ba6 {[%emt 0:00:00]} 12. Na5 {[%emt 0:00:00]} Bb4+ {[%emt 0:00:
00]} 13. Bd2 {[%emt 0:00:00]} Bxa5 {[%emt 0:00:00]} 14. Bxa5 {[%emt 0:00:00]}
Rb8 {[%emt 0:00:00]} 15. b3 {[%emt 0:00:00]} Ke7 {[%emt 0:00:00]} 16. Bf3 {
[%emt 0:00:00]} c5 {[%emt 0:00:00]} 17. O-O {[%emt 0:00:00]} Rhc8 {[%emt 0:00:
00]} 18. Rfc1 {[%emt 0:00:00]} c4 {[%emt 0:00:00]} 19. bxc4 {[%emt 0:00:00]}
Rxc4 {[%emt 0:00:00]} 20. Rxc4 {[%emt 0:00:00]} Bxc4 {[%emt 0:00:00]} 21. Rc1 {
[%emt 0:00:00]} Bxa2 {[%emt 0:00:00]} 22. e4 {[%emt 0:00:00]} Nf6 {[%emt 0:00:
00]} 23. Rc7+ {[%emt 0:00:00]} Kf8 {[%emt 0:00:00]} 24. Rxa7 {[%emt 0:00:00]}
Bb1 {[%emt 0:00:00]} 25. Bc7 {[%emt 0:00:00]} Rc8 {[%emt 0:00:00]} 26. e5 {
[%emt 0:00:00]} Be4 {[%emt 0:00:00]} 27. exf6 {[%emt 0:00:00]} Bxf3 {[%emt 0:
00:00]} 28. fxg7+ {[%emt 0:00:00]} Kxg7 {[%emt 0:00:00]} 29. Kf1 {[%emt 0:00:
00]} Ra8 {[%emt 0:00:00]} 30. Rxa8 {[%emt 0:00:00]} Bxa8 {[%emt 0:00:00]}
1/2-1/2

[Event "Gibraltar Masters 18th"]
[Site "Gibraltar"]
[Date "2020.01.30"]
[Round "10.12"]
[White "Alekseenko, Kirill"]
[Black "Peralta, Fernando"]
[Result "1/2-1/2"]
[ECO "C11"]
[WhiteElo "2704"]
[BlackElo "2574"]
[PlyCount "75"]
[EventDate "2020.01.21"]
[EventType "swiss"]
[EventRounds "10"]
[EventCountry "GGB"]
[SourceTitle "BritBase"]
[Source "John Saunders"]
[SourceDate "2021.06.05"]
[SourceVersion "1"]
[SourceVersionDate "2021.06.05"]
[SourceQuality "1"]
[TimeControl "40/100:0"]
[WhiteClock "0:09:05"]
[BlackClock "0:26:48"]

1. e4 {[%emt 0:00:00]} e6 {[%emt 0:00:00]} 2. d4 {[%emt 0:00:00]} d5 {[%emt 0:
00:00]} 3. Nc3 {[%emt 0:00:00]} Nf6 {[%emt 0:00:00]} 4. e5 {[%emt 0:00:00]}
Nfd7 {[%emt 0:00:00]} 5. f4 {[%emt 0:00:00]} c5 {[%emt 0:00:00]} 6. Nf3 {
[%emt 0:00:00]} Nc6 {[%emt 0:00:00]} 7. Be3 {[%emt 0:00:00]} cxd4 {[%emt 0:00:
00]} 8. Nxd4 {[%emt 0:00:00]} Bc5 {[%emt 0:00:00]} 9. Qd2 {[%emt 0:00:00]} a6 {
[%emt 0:00:00]} 10. O-O-O {[%emt 0:00:00]} Nxd4 {[%emt 0:00:00]} 11. Bxd4 {
[%emt 0:00:00]} Qc7 {[%emt 0:00:00]} 12. Qf2 {[%emt 0:00:00]} b5 {[%emt 0:00:
00]} 13. Bd3 {[%emt 0:00:00]} Bxd4 {[%emt 0:00:00]} 14. Qxd4 {[%emt 0:00:00]}
Rb8 {[%emt 0:00:00]} 15. Kb1 {[%emt 0:00:00]} Nc5 {[%emt 0:00:00]} 16. h4 {
[%emt 0:00:00]} b4 {[%emt 0:00:00]} 17. Ne2 {[%emt 0:00:00]} O-O {[%emt 0:00:
00]} 18. g4 {[%emt 0:00:00]} a5 {[%emt 0:00:00]} 19. Qe3 {[%emt 0:00:00]} Ba6 {
[%emt 0:00:00]} 20. Nd4 {[%emt 0:00:00]} b3 {[%emt 0:00:00]} 21. Nxb3 {[%emt 0:
00:00]} Bxd3 {[%emt 0:00:00]} 22. Qxc5 {[%emt 0:00:00]} Qxc5 {[%emt 0:00:00]}
23. Nxc5 {[%emt 0:00:00]} Bxc2+ {[%emt 0:00:00]} 24. Kxc2 {[%emt 0:00:00]} Rfc8
{[%emt 0:00:00]} 25. Rd4 {[%emt 0:00:00]} Rxc5+ {[%emt 0:00:00]} 26. Kb1 {
[%emt 0:00:00]} Rcb5 {[%emt 0:00:00]} 27. Rh2 {[%emt 0:00:00]} Rb4 {[%emt 0:00:
00]} 28. Rhd2 {[%emt 0:00:00]} h5 {[%emt 0:00:00]} 29. gxh5 {[%emt 0:00:00]}
Kh7 {[%emt 0:00:00]} 30. f5 {[%emt 0:00:00]} Kh6 {[%emt 0:00:00]} 31. fxe6 {
[%emt 0:00:00]} fxe6 {[%emt 0:00:00]} 32. Rxb4 {[%emt 0:00:00]} Rxb4 {[%emt 0:
00:00]} 33. Rg2 {[%emt 0:00:00]} Rxh4 {[%emt 0:00:00]} 34. Rg6+ {[%emt 0:00:00]
} Kxh5 {[%emt 0:00:00]} 35. Rxg7 {[%emt 0:00:00]} Re4 {[%emt 0:00:00]} 36. Ra7
{[%emt 0:00:00]} a4 {[%emt 0:00:00]} 37. Ra6 {[%emt 0:00:00]} Kg5 {[%emt 0:00:
00]} 38. Rxe6 {[%emt 0:00:00]} 1/2-1/2

[Event "Gibraltar Masters 18th"]
[Site "Gibraltar"]
[Date "2020.01.30"]
[Round "10.13"]
[White "Sasikiran, Krishnan"]
[Black "Studer, Noel"]
[Result "1-0"]
[ECO "C18"]
[WhiteElo "2648"]
[BlackElo "2546"]
[PlyCount "153"]
[EventDate "2020.01.21"]
[EventType "swiss"]
[EventRounds "10"]
[EventCountry "GGB"]
[SourceTitle "BritBase"]
[Source "John Saunders"]
[SourceDate "2021.06.05"]
[SourceVersion "1"]
[SourceVersionDate "2021.06.05"]
[SourceQuality "1"]
[TimeControl "40/100:0"]
[WhiteClock "0:02:07"]
[BlackClock "0:16:21"]

1. e4 {[%emt 0:00:00]} e6 {[%emt 0:00:00]} 2. d4 {[%emt 0:00:00]} d5 {[%emt 0:
00:00]} 3. Nc3 {[%emt 0:00:00]} Bb4 {[%emt 0:00:00]} 4. e5 {[%emt 0:00:00]} c5
{[%emt 0:00:00]} 5. a3 {[%emt 0:00:00]} Bxc3+ {[%emt 0:00:00]} 6. bxc3 {
[%emt 0:00:00]} Ne7 {[%emt 0:00:00]} 7. Qg4 {[%emt 0:00:00]} cxd4 {[%emt 0:00:
00]} 8. Bd3 {[%emt 0:00:00]} Qa5 {[%emt 0:00:00]} 9. Rb1 {[%emt 0:00:00]} Nd7 {
[%emt 0:00:00]} 10. Nf3 {[%emt 0:00:00]} Ng6 {[%emt 0:00:00]} 11. O-O {[%emt 0:
00:00]} dxc3 {[%emt 0:00:00]} 12. h4 {[%emt 0:00:00]} Qc7 {[%emt 0:00:00]} 13.
Re1 {[%emt 0:00:00]} O-O {[%emt 0:00:00]} 14. h5 {[%emt 0:00:00]} Ngxe5 {
[%emt 0:00:00]} 15. Nxe5 {[%emt 0:00:00]} Nxe5 {[%emt 0:00:00]} 16. Qg3 {
[%emt 0:00:00]} f6 {[%emt 0:00:00]} 17. Bf4 {[%emt 0:00:00]} Qe7 {[%emt 0:00:
00]} 18. Rxe5 {[%emt 0:00:00]} fxe5 {[%emt 0:00:00]} 19. Bxe5 {[%emt 0:00:00]}
Rf6 {[%emt 0:00:00]} 20. Rb4 {[%emt 0:00:00]} h6 {[%emt 0:00:00]} 21. Bd6 {
[%emt 0:00:00]} Qd7 {[%emt 0:00:00]} 22. Be5 {[%emt 0:00:00]} Qe7 {[%emt 0:00:
00]} 23. Rb3 {[%emt 0:00:00]} d4 {[%emt 0:00:00]} 24. Rb4 {[%emt 0:00:00]} Rf5
{[%emt 0:00:00]} 25. Bxf5 exf5 {[%emt 0:00:00]} 26. Rxd4 {[%emt 0:00:00]} Bd7 {
[%emt 0:00:00]} 27. Rd6 {[%emt 0:00:00]} f4 {[%emt 0:00:00]} 28. Bxf4 {[%emt 0:
00:00]} Bf5 {[%emt 0:00:00]} 29. Bxh6 {[%emt 0:00:00]} Bxc2 {[%emt 0:00:00]}
30. Rd5 {[%emt 0:00:00]} Kh7 {[%emt 0:00:57]} 31. Qxc3 {[%emt 0:00:00]} Bb1 {
[%emt 0:00:00]} 32. Be3 {[%emt 0:00:00]} Qf7 {[%emt 0:00:00]} 33. h6 {[%emt 0:
00:00]} gxh6 {[%emt 0:00:09]} 34. Qd4 {[%emt 0:00:54]} Re8 {[%emt 0:00:00]} 35.
Rd7 {[%emt 0:00:03]} Re7 {[%emt 0:00:00]} 36. Rd8 {[%emt 0:00:00]} Qg7 {
[%emt 0:00:00]} 37. Qxg7+ Rxg7 {[%emt 0:00:00]} 38. Bd4 {[%emt 0:00:00]} Rg5 {
[%emt 0:00:00]} 39. Rd7+ {[%emt 0:00:05]} Kg6 {[%emt 0:00:00]} 40. Be3 {
[%emt 0:00:01]} Rb5 {[%emt 0:00:00]} 41. Rd6+ {[%emt 0:01:44]} Kf7 {[%emt 0:00:
00]} 42. Rxh6 {[%emt 0:00:00]} Ra5 {[%emt 0:00:00]} 43. Bc1 {[%emt 0:00:00]}
Rc5 {[%emt 0:00:00]} 44. Bd2 {[%emt 0:00:00]} Rd5 {[%emt 0:00:00]} 45. Bc3 {
[%emt 0:00:00]} Bg6 {[%emt 0:00:00]} 46. Rh4 {[%emt 0:00:00]} b5 {[%emt 0:00:
00]} 47. Rf4+ {[%emt 0:00:00]} Rf5 {[%emt 0:00:00]} 48. Rd4 {[%emt 0:00:00]}
Ke6 {[%emt 0:00:00]} 49. Rd8 {[%emt 0:00:00]} Rd5 {[%emt 0:00:00]} 50. Rf8 {
[%emt 0:00:00]} Rd6 {[%emt 0:00:00]} 51. Bb4 {[%emt 0:00:00]} Rd7 {[%emt 0:00:
00]} 52. f3 {[%emt 0:00:00]} Bd3 {[%emt 0:00:00]} 53. Kf2 {[%emt 0:00:00]} Bc4
{[%emt 0:00:00]} 54. Ra8 {[%emt 0:00:00]} Bd5 {[%emt 0:00:00]} 55. Re8+ {
[%emt 0:00:00]} Kf7 {[%emt 0:00:00]} 56. Rb8 {[%emt 0:00:00]} Bc4 {[%emt 0:00:
00]} 57. Rc8 {[%emt 0:00:00]} Ke6 {[%emt 0:00:00]} 58. Re8+ {[%emt 0:00:00]}
Kf7 {[%emt 0:00:00]} 59. Rf8+ {[%emt 0:00:00]} Ke6 {[%emt 0:00:00]} 60. Ra8 {
[%emt 0:00:00]} Bd5 {[%emt 0:00:00]} 61. Rc8 {[%emt 0:00:00]} Bc4 {[%emt 0:00:
00]} 62. Rc6+ {[%emt 0:00:00]} Kd5 {[%emt 0:00:00]} 63. Ra6 {[%emt 0:00:00]}
Kd4 {[%emt 0:00:00]} 64. g4 {[%emt 0:00:00]} Ke5 {[%emt 0:00:00]} 65. Bc3+ {
[%emt 0:00:00]} Kf4 {[%emt 0:00:00]} 66. Rf6+ {[%emt 0:00:00]} Kg5 {[%emt 0:00:
00]} 67. Rf5+ {[%emt 0:00:00]} Kg6 {[%emt 0:00:00]} 68. f4 {[%emt 0:00:00]} Rd3
{[%emt 0:00:00]} 69. Rf6+ {[%emt 0:00:00]} Kh7 {[%emt 0:00:00]} 70. Be5 {
[%emt 0:00:00]} Rxa3 {[%emt 0:00:00]} 71. g5 {[%emt 0:00:00]} Rh3 {[%emt 0:00:
00]} 72. f5 {[%emt 0:00:00]} Bd3 {[%emt 0:00:00]} 73. Rf7+ {[%emt 0:00:00]} Kg8
{[%emt 0:00:00]} 74. Rg7+ {[%emt 0:00:00]} Kf8 {[%emt 0:00:00]} 75. f6 {
[%emt 0:00:00]} Bc4 {[%emt 0:00:00]} 76. Bd6+ {[%emt 0:00:00]} Ke8 {[%emt 0:00:
00]} 77. g6 {[%emt 0:00:00]} 1-0

[Event "Gibraltar Masters 18th"]
[Site "Gibraltar"]
[Date "2020.01.30"]
[Round "10.14"]
[White "Baron, Tal"]
[Black "Narayanan, SL."]
[Result "1/2-1/2"]
[ECO "C70"]
[WhiteElo "2529"]
[BlackElo "2637"]
[PlyCount "75"]
[EventDate "2020.01.21"]
[EventType "swiss"]
[EventRounds "10"]
[EventCountry "GGB"]
[SourceTitle "BritBase"]
[Source "John Saunders"]
[SourceDate "2021.06.05"]
[SourceVersion "1"]
[SourceVersionDate "2021.06.05"]
[SourceQuality "1"]
[TimeControl "40/100:0"]
[WhiteClock "0:13:54"]
[BlackClock "0:09:00"]

1. e4 {[%emt 0:00:00]} e5 {[%emt 0:00:00]} 2. Nf3 {[%emt 0:00:00]} Nc6 {
[%emt 0:00:00]} 3. Bb5 {[%emt 0:00:00]} a6 {[%emt 0:00:00]} 4. Ba4 {[%emt 0:00:
00]} Bc5 {[%emt 0:00:00]} 5. Nc3 {[%emt 0:00:00]} b5 {[%emt 0:00:00]} 6. Bb3 {
[%emt 0:00:00]} d6 {[%emt 0:00:00]} 7. O-O {[%emt 0:00:00]} Nf6 {[%emt 0:00:00]
} 8. Nd5 {[%emt 0:00:00]} h6 {[%emt 0:00:00]} 9. c3 {[%emt 0:00:00]} O-O {
[%emt 0:00:00]} 10. d4 {[%emt 0:00:00]} Ba7 {[%emt 0:00:00]} 11. Re1 {[%emt 0:
00:00]} exd4 {[%emt 0:00:00]} 12. cxd4 {[%emt 0:00:00]} Bg4 {[%emt 0:00:00]}
13. Be3 {[%emt 0:00:00]} Bxf3 {[%emt 0:00:00]} 14. Qxf3 {[%emt 0:00:00]} Bxd4 {
[%emt 0:00:00]} 15. Rac1 {[%emt 0:00:00]} Nxd5 {[%emt 0:00:00]} 16. Bxd5 {
[%emt 0:00:00]} Ne5 {[%emt 0:00:00]} 17. Qg3 {[%emt 0:00:00]} Bxe3 {[%emt 0:00:
00]} 18. Rxe3 {[%emt 0:00:00]} Rb8 {[%emt 0:00:00]} 19. f4 {[%emt 0:00:00]} Nd7
{[%emt 0:00:00]} 20. e5 {[%emt 0:00:00]} Nb6 {[%emt 0:00:00]} 21. Bb3 {[%emt 0:
00:00]} Nc4 {[%emt 0:00:00]} 22. Re2 {[%emt 0:00:00]} dxe5 {[%emt 0:00:00]} 23.
fxe5 {[%emt 0:00:00]} Qd4+ {[%emt 0:00:00]} 24. Qf2 {[%emt 0:00:00]} Rfd8 {
[%emt 0:00:00]} 25. h3 {[%emt 0:00:00]} c5 {[%emt 0:00:00]} 26. e6 {[%emt 0:00:
00]} fxe6 {[%emt 0:00:00]} 27. Rxe6 {[%emt 0:00:00]} Qxf2+ {[%emt 0:00:00]} 28.
Kxf2 {[%emt 0:00:00]} Nxb2 {[%emt 0:00:00]} 29. Re8+ {[%emt 0:00:00]} Kh7 {
[%emt 0:00:00]} 30. Bc2+ {[%emt 0:00:00]} g6 {[%emt 0:00:00]} 31. Re7+ {
[%emt 0:00:00]} Kg8 {[%emt 0:00:00]} 32. Re6 {[%emt 0:00:00]} Rd2+ {[%emt 0:00:
00]} 33. Kg1 {[%emt 0:00:00]} c4 {[%emt 0:00:00]} 34. Rxg6+ {[%emt 0:00:00]}
Kf7 {[%emt 0:00:00]} 35. Rf1+ {[%emt 0:00:00]} Ke7 {[%emt 0:00:00]} 36. Re1+ {
[%emt 0:00:00]} Kf7 {[%emt 0:00:00]} 37. Rf1+ {[%emt 0:00:00]} Ke7 {[%emt 0:00:
00]} 38. Re1+ {[%emt 0:00:00]} 1/2-1/2